bitfinex/quotes_BTCUSD_20241120
["timestamp","ask_amount","ask_price","bid_price","bid_amount"]
[1732113897024,0.306236,94129.0,94128.0,0.09499]
[1732113897276,0.306236,94145.0,94144.0,0.084976]
[1732113897491,0.41335112,94145.0,94144.0,0.084976]
[1732113897706,0.212339,94189.0,94138.0,0.084981]
[1732113897707,0.306236,94158.0,94157.0,0.084964]
[1732113897971,0.41335112,94158.0,94157.0,0.084964]
[1732113899116,0.023,94157.0,94132.0,0.01]
[1732113899333,0.023,94157.0,94156.0,0.084965]
[1732113899574,0.329236,94157.0,94156.0,0.084965]
[1732113900059,0.41335112,94157.0,94156.0,0.084965]
[1732113900507,0.41335112,94157.0,94154.0,0.084966]
[1732113900735,0.41335112,94157.0,94132.0,0.01]
[1732113900736,0.01,94154.0,94118.0,0.01]
[1732113900950,0.01,94154.0,94088.0,0.087026]
[1732113900951,0.10711512,94143.0,94088.0,0.085026]
[1732113901174,0.306236,94153.0,94088.0,0.085026]
[1732113901175,0.023,94128.0,94122.0,0.084995]
[1732113901413,0.023,94128.0,94109.0,0.0017122]
[1732113901414,0.023,94124.0,94109.0,0.0017122]
[1732113901625,0.023,94113.0,94109.0,0.0017122]
[1732113901837,0.023,94111.0,94109.0,0.0017122]
[1732113902100,0.5399,94112.0,94110.0,0.085006]
[1732113902301,0.5399,94112.0,94111.0,0.085006]
[1732113902512,0.5399,94112.0,94111.0,0.095006]
[1732113902761,0.51403092,94131.0,94130.0,0.084988]
[1732113902987,0.51403092,94131.0,94109.0,0.0017122]
[1732113902988,0.62114604,94131.0,94114.0,0.085002]
[1732113903237,0.62114604,94131.0,94109.0,0.0017122]
[1732113903238,0.01,94120.0,94117.0,0.085]
[1732113903488,0.10711512,94118.0,94115.0,0.085001]
[1732113903705,0.51509502,94119.0,94109.0,0.0017122]
[1732113903706,0.10711512,94116.0,94109.0,0.0017122]
[1732113903924,0.51403092,94119.0,94109.0,0.0017122]
[1732113903925,0.13011512,94110.0,94109.0,0.0017122]
[1732113904136,0.13117922,94110.0,94109.0,0.0017122]
[1732113904559,0.64521014,94110.0,94109.0,0.0017122]
[1732113904768,0.75040404,94110.0,94109.0,0.0017122]
[1732113904979,0.64414604,94110.0,94109.0,0.0017122]
[1732113905211,0.64414604,94110.0,94109.0,0.0867192]
[1732113905448,0.62114604,94110.0,94109.0,0.0867192]
[1732113905915,0.51403092,94121.0,94109.0,0.0867192]
[1732113906105,0.51403092,94121.0,94120.0,0.084997]
[1732113906553,0.51403092,94121.0,94109.0,0.0017122]
[1732113906765,0.10694256,94140.0,94109.0,0.0017122]
[1732113906766,0.01,94115.0,94109.0,0.0017122]
[1732113907007,0.212508,94114.0,94109.0,0.0017122]
[1732113907247,0.116258,94110.0,94109.0,0.0017122]
[1732113907480,0.14011512,94110.0,94109.0,0.0017122]
[1732113908332,0.10711512,94110.0,94109.0,0.0017122]
[1732113908564,0.10711512,94110.0,94109.0,0.0867192]
[1732113909040,0.13011512,94110.0,94109.0,0.0017122]
[1732113909247,0.14117922,94110.0,94109.0,0.0017122]
[1732113909701,0.24743722,94110.0,94109.0,0.0017122]
[1732113909955,0.24637312,94110.0,94109.0,0.0017122]
[1732113910449,0.01,94098.0,94097.0,0.0017114]
[1732113910696,0.76041804,94098.0,94097.0,0.0017114]
[1732113911179,0.76041804,94098.0,94055.0,0.01]
[1732113911180,0.139281,94090.0,94055.0,0.01]
[1732113911426,0.0010641,94090.0,94079.0,0.085034]
[1732113911636,0.0010641,94090.0,94071.0,0.085041]
[1732113911637,0.23639612,94090.0,94071.0,0.085041]
[1732113911876,0.23639612,94090.0,94056.0,0.01]
[1732113912132,0.13011512,94090.0,94062.0,0.0117118]
[1732113912359,0.13011512,94090.0,94066.0,0.085045]
[1732113912360,0.106283,94088.0,94066.0,0.085045]
[1732113912588,0.10629,94082.0,94067.0,0.085045]
[1732113912849,0.02840728,94091.0,94064.0,0.086759]
[1732113912850,0.10711512,94075.0,94064.0,0.086759]
[1732113913077,0.10711512,94075.0,94069.0,0.085043]
[1732113913284,0.10711512,94075.0,94064.0,0.001712]
[1732113913285,0.10711512,94075.0,94065.0,0.085047]
[1732113913514,0.10711512,94075.0,94070.0,0.085042]
[1732113913756,0.13011512,94075.0,94064.0,0.001712]
[1732113914030,0.31221312,94075.0,94064.0,0.001712]
[1732113914247,0.82453304,94075.0,94064.0,0.001712]
[1732113914466,0.69523504,94075.0,94064.0,0.001712]
[1732113914676,0.69523504,94075.0,94065.0,0.085047]
[1732113914889,0.72255476,94075.0,94074.0,0.0867504]
[1732113915106,0.69523504,94075.0,94074.0,0.0017114]
[1732113917078,0.71823504,94075.0,94074.0,0.0017114]
[1732113917772,0.51231992,94079.0,94078.0,0.085035]
[1732113918065,0.51231992,94086.0,94085.0,0.085029]
[1732113918760,0.57443504,94086.0,94085.0,0.085029]
[1732113919244,0.57443504,94086.0,94074.0,0.0017114]
[1732113919457,0.10711512,94081.0,94074.0,0.0017114]
[1732113919690,0.54461992,94085.0,94074.0,0.0017114]
[1732113919691,0.10711512,94075.0,94074.0,0.0017114]
[1732113919943,0.13011512,94075.0,94074.0,0.0017114]
[1732113920622,0.13011512,94075.0,94054.0,0.1]
[1732113920623,0.023,94065.0,94054.0,0.1]
[1732113920838,0.023,94065.0,94051.0,0.001]
[1732113920839,0.59572364,94065.0,94051.0,0.001]
[1732113921069,0.78203264,94065.0,94051.0,0.001]
[1732113921321,0.023,94063.0,94051.0,0.001]
[1732113921520,0.13011512,94052.0,94051.0,0.001]
[1732113921779,0.13011512,94052.0,94051.0,0.08606]
[1732113921780,0.57272364,94052.0,94051.0,0.08606]
[1732113922244,0.57272364,94052.0,94051.0,0.001]
[1732113922453,0.61522864,94052.0,94051.0,0.001]
[1732113922698,0.61522864,94052.0,94051.0,0.08606]
[1732113922915,0.57272364,94052.0,94051.0,0.08606]
[1732113923144,0.63822764,94052.0,94051.0,0.001]
[1732113923584,0.61522764,94052.0,94051.0,0.08606]
[1732113923795,0.50811252,94052.0,94051.0,0.09606]
[1732113923995,0.50811252,94052.0,94051.0,0.08606]
[1732113923996,0.61522764,94052.0,94051.0,0.08606]
[1732113924216,0.57272364,94052.0,94051.0,0.08606]
[1732113925581,0.10711512,94052.0,94051.0,0.08606]
[1732113925785,0.46560852,94074.0,94073.0,0.08504]
[1732113925990,0.57272364,94074.0,94073.0,0.08504]
[1732113926430,4e-05,94075.0,94074.0,0.205039]
[1732113927129,4e-05,94075.0,94074.0,0.2161019]
[1732113927349,0.46560852,94109.0,94086.0,0.02]
[1732113927350,9e-07,94090.0,94086.0,0.02]
[1732113927557,4e-05,94143.0,94086.0,0.02]
[1732113927558,0.44435742,94125.0,94109.0,0.205007]
[1732113927796,0.44435742,94124.0,94109.0,0.205007]
[1732113928462,0.44435742,94124.0,94109.0,0.185007]
[1732113928463,0.10715512,94110.0,94109.0,0.185007]
[1732113928716,4e-05,94110.0,94109.0,0.105007]
[1732113929160,0.44435742,94124.0,94123.0,0.084995]
[1732113929381,0.44435742,94130.0,94129.0,0.094989]
[1732113929616,0.44435742,94142.0,94130.0,0.194988]
[1732113930042,0.44435742,94142.0,94130.0,0.204988]
[1732113930953,5e-07,94131.0,94130.0,0.204988]
[1732113931389,5e-07,94131.0,94130.0,0.224988]
[1732113931651,5e-07,94143.0,94142.0,0.104978]
[1732113931856,5e-07,94143.0,94142.0,0.20108013]
[1732113932121,5e-07,94143.0,94142.0,0.200018]
[1732113932824,0.10711562,94143.0,94142.0,0.084978]
[1732113933052,0.10711562,94143.0,94142.0,0.094978]
[1732113933794,0.06211562,94143.0,94142.0,0.084978]
[1732113935155,0.03326199,94165.0,94157.0,0.084964]
[1732113935156,0.00496,94165.0,94157.0,0.084964]
[1732113935411,0.00496,94166.0,94158.0,0.084963]
[1732113935847,0.10715512,94159.0,94158.0,0.084963]
[1732113936500,0.023,94158.0,94157.0,0.084963]
[1732113936716,0.13011512,94158.0,94157.0,0.084963]
[1732113936966,0.00496,94145.0,94117.0,0.00504]
[1732113937200,0.212421,94153.0,94095.0,0.095019]
[1732113937201,0.10711512,94134.0,94133.0,0.084985]
[1732113937427,0.10711512,94134.0,94085.0,0.01]
[1732113937428,0.00496,94111.0,94085.0,0.01]
[1732113937636,0.023,94108.0,94107.0,0.085009]
[1732113938070,0.023,94108.0,94104.0,0.085011]
[1732113938317,0.023,94108.0,94107.0,0.085009]
[1732113938564,0.023,94108.0,94104.0,0.085011]
[1732113938565,0.10711512,94108.0,94104.0,0.01]
[1732113938774,0.0787,94125.0,94106.0,0.01]
[1732113938775,0.10711512,94107.0,94106.0,0.01]
[1732113938988,0.10711512,94107.0,94106.0,0.095009]
[1732113939195,0.10711512,94107.0,94106.0,0.085009]
[1732113939402,0.10711512,94107.0,94106.0,0.08501]
[1732113939614,0.00496,94102.0,94077.0,0.00504]
[1732113939849,0.11207512,94088.0,94087.0,0.085027]
[1732113940084,0.11207512,94088.0,94080.0,0.085034]
[1732113940085,0.13507512,94088.0,94085.0,0.085028]
[1732113940321,0.13507512,94088.0,94083.0,0.085031]
[1732113940584,0.13507512,94088.0,94086.0,0.085028]
[1732113940823,0.13507512,94088.0,94087.0,0.085027]
[1732113941455,0.11207512,94088.0,94087.0,0.085027]
[1732113941659,0.10711512,94088.0,94087.0,0.085027]
[1732113942091,0.5399,94101.0,94087.0,0.085027]
[1732113942092,0.5399,94101.0,94100.0,0.085015]
[1732113942306,0.076,94106.0,94103.0,0.085013]
[1732113942307,0.5399,94104.0,94103.0,0.085013]
[1732113942717,0.64701512,94104.0,94103.0,0.085013]
[1732113943385,0.0769,94123.0,94115.0,0.00504]
[1732113943386,0.5399,94116.0,94115.0,0.00504]
[1732113943615,0.5399,94116.0,94115.0,0.085002]
[1732113943835,0.64701512,94116.0,94115.0,0.085002]
[1732113944071,0.64701512,94116.0,94090.0,0.00504]
[1732113944072,0.65197512,94116.0,94113.0,0.170006]
[1732113944274,0.10711512,94115.0,94096.0,0.085019]
[1732113944497,0.10711512,94098.0,94078.0,0.01]
[1732113944716,0.00496,94099.0,94078.0,0.01]
[1732113944717,0.10711512,94089.0,94086.0,0.085028]
[1732113944985,0.10711512,94089.0,94088.0,0.085026]
[1732113945198,0.134243,94088.0,94087.0,0.0017128]
[1732113945404,0.023,94076.0,94072.0,0.085041]
[1732113945619,0.023,94076.0,94074.0,0.0867518]
[1732113945620,0.66830232,94075.0,94074.0,0.0867518]
[1732113945880,0.64530232,94075.0,94074.0,0.0867518]
[1732113946537,0.67326232,94075.0,94074.0,0.0017138]
[1732113946772,0.67326232,94075.0,94074.0,0.0867528]
[1732113946998,0.67326232,94075.0,94059.0,0.085052]
[1732113946999,0.023,94061.0,94059.0,0.085052]
[1732113947232,0.023,94059.0,94040.0,0.085069]
[1732113947475,0.10711512,94057.0,94053.0,0.085057]
[1732113947657,0.10711512,94057.0,94040.0,0.085069]
[1732113947658,0.10711512,94057.0,94056.0,0.085055]
[1732113947893,0.10711512,94057.0,94052.0,0.085058]
[1732113947894,0.023,94055.0,94052.0,0.085058]
[1732113948114,0.023,94055.0,94049.0,0.0867702]
[1732113948115,0.02796,94052.0,94049.0,0.0017092]
[1732113948380,0.64530232,94052.0,94051.0,0.08606]
[1732113948602,0.64530232,94052.0,94051.0,0.09606]
[1732113948874,0.60030232,94052.0,94051.0,0.08606]
[1732113951085,0.5381872,94052.0,94051.0,0.0911]
[1732113951356,0.5381872,94052.0,94051.0,0.1011]
[1732113951561,0.5381872,94072.0,94071.0,0.085042]
[1732113951773,0.02377,94075.0,94071.0,0.085042]
[1732113951774,0.5381872,94074.0,94073.0,0.08504]
[1732113952016,0.5381872,94074.0,94073.0,0.09008]
[1732113952224,0.5381872,94074.0,94073.0,0.10008]
[1732113952452,0.00496,94102.0,94069.0,0.085043]
[1732113952453,0.5381872,94098.0,94087.0,0.01]
[1732113952692,0.0476,94119.0,94118.0,0.084999]
[1732113952900,0.0802,94123.0,94122.0,0.084996]
[1732113953408,0.0779,94136.0,94135.0,0.084984]
[1732113953630,0.0008564,94142.0,94141.0,0.084978]
[1732113954098,0.10797152,94142.0,94141.0,0.084978]
[1732113955025,0.0008564,94142.0,94141.0,0.100018]
[1732113955568,4e-07,94142.0,94141.0,0.200018]
[1732113956897,0.10711552,94142.0,94141.0,0.084978]
[1732113957111,0.64701552,94142.0,94141.0,0.084978]
[1732113958378,0.0476,94133.0,94113.0,0.085003]
[1732113958635,0.0476,94133.0,94072.0,0.002]
[1732113958636,0.023,94113.0,94094.0,0.00504]
[1732113958885,0.212481,94126.0,94074.0,0.011714]
[1732113958886,0.00496,94108.0,94107.0,0.085009]
[1732113959136,0.10711512,94108.0,94107.0,0.085009]
[1732113959344,0.023,94107.0,94106.0,0.085009]
[1732113959557,0.13011512,94107.0,94104.0,0.085011]
[1732113959762,0.13011512,94107.0,94098.0,0.085017]
[1732113959763,0.023,94104.0,94102.0,0.085013]
[1732113959984,0.13011512,94103.0,94102.0,0.085013]
[1732113960206,0.13507512,94103.0,94102.0,0.085013]
[1732113960423,0.13507512,94103.0,94094.0,0.08502]
[1732113960424,0.023,94102.0,94094.0,0.08502]
[1732113960639,0.023,94102.0,94101.0,0.085015]
[1732113960851,0.023,94102.0,94082.0,0.00504]
[1732113960852,0.023,94105.0,94096.0,0.01]
[1732113961050,0.49578035,94131.0,94096.0,0.01]
[1732113961051,0.00496,94115.0,94110.0,0.085006]
[1732113961277,0.023,94112.0,94096.0,0.01]
[1732113961486,0.023,94112.0,94084.0,0.1]
[1732113961487,0.10711512,94111.0,94110.0,0.085006]
[1732113961696,0.10711512,94111.0,94110.0,0.090046]
[1732113961912,0.03873015,94138.0,94135.0,0.084984]
[1732113962126,0.00496,94152.0,94141.0,0.084978]
[1732113962357,0.10711552,94142.0,94141.0,0.084978]
[1732113963749,4e-07,94142.0,94141.0,0.200018]
[1732113963987,0.10711512,94142.0,94138.0,0.00504]
[1732113964202,0.10711512,94141.0,94140.0,0.094979]
[1732113965060,0.0332404,94165.0,94140.0,0.100019]
[1732113965265,0.254795,94184.0,94151.0,0.01]
[1732113965266,0.10711512,94157.0,94151.0,0.01]
[1732113965492,0.10711512,94157.0,94156.0,0.084965]
[1732113965732,0.10711512,94157.0,94149.0,0.084971]
[1732113965733,0.10711512,94157.0,94155.0,0.084966]
[1732113965960,0.00496,94154.0,94153.0,0.084968]
[1732113966183,0.11207512,94154.0,94136.0,0.01]
[1732113966437,0.11207512,94154.0,94107.0,0.01]
[1732113966438,0.11207512,94137.0,94112.0,0.01]
[1732113966689,0.11207512,94137.0,94088.0,0.1281]
[1732113966690,0.10711512,94120.0,94119.0,0.084998]
[1732113966944,0.5399,94136.0,94135.0,0.084984]
[1732113967154,0.0682,94157.0,94156.0,0.084965]
[1732113967386,0.10711512,94157.0,94141.0,0.00504]
[1732113967631,0.10711512,94156.0,94154.0,0.084966]
[1732113967861,0.10711512,94156.0,94132.0,0.00504]
[1732113967862,0.0787,94162.0,94161.0,0.08496]
[1732113968081,0.00496,94175.0,94174.0,0.084949]
[1732113968301,0.00496,94169.0,94139.0,0.1]
[1732113968513,0.10711512,94175.0,94150.0,0.08497]
[1732113968514,0.10711512,94151.0,94150.0,0.08497]
[1732113968719,0.10711512,94151.0,94142.0,0.084978]
[1732113968929,0.10711512,94151.0,94124.0,0.1]
[1732113968930,0.10711512,94144.0,94143.0,0.084977]
[1732113969143,0.10711512,94144.0,94140.0,0.084979]
[1732113969396,0.10711512,94141.0,94124.0,0.084994]
[1732113969633,0.10711512,94141.0,94140.0,0.084979]
[1732113969849,0.023,94138.0,94137.0,0.084982]
[1732113970053,0.12949297,94138.0,94137.0,0.084982]
[1732113970268,0.00496,94136.0,94113.0,0.01]
[1732113970479,0.10711512,94121.0,94120.0,0.094997]
[1732113970739,0.0774,94158.0,94134.0,0.090025]
[1732113970740,0.10711512,94135.0,94134.0,0.090025]
[1732113970957,0.00496,94170.0,94169.0,0.084953]
[1732113971196,0.10711512,94170.0,94169.0,0.084953]
[1732113971868,0.10711512,94170.0,94169.0,0.089993]
[1732113972094,0.0008566,94175.0,94167.0,0.084954]
[1732113972095,0.0008566,94175.0,94174.0,0.089989]
[1732113972542,0.0008566,94175.0,94174.0,0.099989]
[1732113972777,0.0008566,94175.0,94174.0,0.094949]
[1732113973010,0.0008566,94175.0,94174.0,0.099989]
[1732113975705,4.17006298,94200.0,94181.0,0.01]
[1732113975706,0.5399,94196.0,94181.0,0.01]
[1732113975948,4.17006298,94200.0,94196.0,0.199969]
[1732113976185,4.17006298,94200.0,94193.0,0.084931]
[1732113976411,4.17006298,94200.0,94196.0,0.084929]
[1732113977860,8e-07,94197.0,94196.0,0.19204412]
[1732113978070,4.17006298,94200.0,94196.0,0.19204412]
[1732113978071,4.08513978,94200.0,94199.0,0.094926]
[1732113978298,3.95703978,94200.0,94199.0,0.32504112]
[1732113978535,3.85088478,94200.0,94199.0,1.01201212]
[1732113978765,3.72578478,94200.0,94199.0,0.88887412]
[1732113979003,3.66568478,94200.0,94199.0,0.91731193]
[1732113979262,3.08968988,94200.0,94199.0,0.62520505]
[1732113979462,3.08968988,94200.0,94199.0,0.6501574]
[1732113979463,2.98802019,94200.0,94199.0,0.6501574]
[1732113979723,2.88364819,94200.0,94199.0,0.6501574]
[1732113979953,2.52578672,94200.0,94199.0,0.6501574]
[1732113980189,2.40617654,94200.0,94199.0,0.67050466]
[1732113980441,1.30868537,94200.0,94199.0,0.67050466]
[1732113980660,1.30868537,94200.0,94199.0,0.6511867]
[1732113980661,1.11148401,94200.0,94199.0,0.6511867]
[1732113980897,0.29135401,94200.0,94199.0,0.66998784]
[1732113981152,0.14055627,94231.0,94230.0,0.096898]
[1732113981406,0.14055627,94231.0,94230.0,1.65298412]
[1732113981650,0.03443927,94231.0,94230.0,2.93895912]
[1732113981860,0.16074714,94234.0,94233.0,0.096895]
[1732113982069,0.16074714,94234.0,94233.0,0.30401012]
[1732113982302,0.16074714,94234.0,94233.0,0.59376312]
[1732113982543,0.16074714,94234.0,94233.0,0.61676312]
[1732113982773,0.05110059,94234.0,94233.0,0.64983575]
[1732113983021,0.01110059,94234.0,94233.0,0.64983575]
[1732113983451,0.12859472,94252.0,94251.0,0.012]
[1732113983717,0.06493472,94252.0,94251.0,0.32690558]
[1732113983928,7e-05,94288.0,94251.0,0.32690558]
[1732113983929,7e-05,94288.0,94269.0,0.09677446]
[1732113984146,7e-05,94288.0,94269.0,0.30197812]
[1732113984804,7e-05,94288.0,94269.0,0.30388958]
[1732113985099,5e-07,94270.0,94269.0,0.30388958]
[1732113985380,0.04286347,94277.0,94276.0,0.08616146]
[1732113985599,4.7e-07,94277.0,94276.0,0.29327658]
[1732113986037,4.7e-07,94288.0,94287.0,0.08615246]
[1732113986251,4.7e-07,94288.0,94287.0,0.29326758]
[1732113986453,0.0008557,94295.0,94287.0,0.29326758]
[1732113986454,0.14294334,94294.0,94293.0,0.085236]
[1732113986680,0.14294334,94294.0,94293.0,0.19135112]
[1732113987162,0.03689334,94294.0,94293.0,0.29326258]
[1732113987601,0.09592284,94297.0,94296.0,0.08614546]
[1732113987818,0.09592284,94297.0,94296.0,0.29326058]
[1732113988039,0.09592284,94297.0,94296.0,0.29234912]
[1732113988256,0.09592284,94297.0,94296.0,0.174234]
[1732113988472,0.07471284,94297.0,94296.0,0.29134912]
[1732113989584,0.07471284,94297.0,94296.0,0.29326058]
[1732113989585,0.03229284,94297.0,94296.0,0.29326058]
[1732113989819,8.4e-07,94297.0,94296.0,0.29134912]
[1732113990026,8.4e-07,94297.0,94296.0,0.29326058]
[1732113990277,8.4e-07,94297.0,94296.0,0.29134912]
[1732113991155,8.4e-07,94297.0,94296.0,0.184234]
[1732113991572,8.4e-07,94297.0,94296.0,0.174234]
[1732113991776,8.4e-07,94297.0,94296.0,0.074234]
[1732113992475,8.4e-07,94297.0,94296.0,0.19134912]
[1732113992922,8.4e-07,94297.0,94296.0,0.18692212]
[1732113993146,8.4e-07,94297.0,94296.0,0.178807]
[1732113993841,4.30372101,94300.0,94299.0,0.074231]
[1732113995236,4.35212101,94300.0,94299.0,0.074231]
[1732113995453,4.36212101,94300.0,94299.0,0.074231]
[1732113995927,4.36212101,94300.0,94264.0,0.084867]
[1732113995928,0.01,94297.0,94289.0,0.084845]
[1732113996122,0.03308854,94294.0,94289.0,0.084845]
[1732113996356,8.854e-05,94285.0,94284.0,0.08485]
[1732113996606,0.01,94288.0,94287.0,0.084847]
[1732113996817,0.03308854,94288.0,94287.0,0.084847]
[1732113997024,4.89202101,94300.0,94298.0,0.084837]
[1732113997025,4.90202101,94300.0,94298.0,0.084837]
[1732113997277,4.90202101,94300.0,94299.0,0.084836]
[1732113997500,4.30372101,94300.0,94299.0,0.084836]
[1732113997702,4.30372101,94300.0,94299.0,0.184836]
[1732113998620,4.24009401,94300.0,94299.0,0.185836]
[1732113998852,4.24009401,94300.0,94299.0,0.194836]
[1732113998853,4.19767601,94300.0,94299.0,0.194836]
[1732114000003,4.19767601,94300.0,94299.0,0.184836]
[1732114002222,4.19767601,94300.0,94299.0,0.084836]
[1732114003161,4.31479113,94300.0,94299.0,0.084836]
[1732114003621,4.31479113,94300.0,94299.0,0.184836]
[1732114003867,4.31487967,94300.0,94299.0,0.184836]
[1732114004086,4.31487967,94300.0,94287.0,0.084847]
[1732114004087,0.01,94288.0,94287.0,0.084847]
[1732114004306,0.01,94297.0,94296.0,0.074234]
[1732114004519,0.11711512,94297.0,94296.0,0.074234]
[1732114005876,0.11711512,94297.0,94290.0,0.074239]
[1732114005877,0.01,94291.0,94290.0,0.074239]
[1732114006103,0.01,94293.0,94292.0,0.074237]
[1732114006322,0.10711512,94296.0,94292.0,0.074237]
[1732114006323,0.10711512,94296.0,94295.0,0.074235]
[1732114006535,0.0823,94299.0,94298.0,0.074232]
[1732114007019,4.74757601,94300.0,94298.0,0.174232]
[1732114007236,4.19853091,94300.0,94299.0,0.174231]
[1732114007887,4.17732191,94300.0,94299.0,0.174231]
[1732114008117,4.09248591,94300.0,94299.0,0.18614246]
[1732114008339,4.09248591,94300.0,94299.0,0.185231]
[1732114008558,3.98644091,94300.0,94299.0,0.29234612]
[1732114008778,3.94144091,94300.0,94299.0,0.29234612]
[1732114008991,3.94144091,94300.0,94299.0,0.28234612]
[1732114009219,3.94144091,94300.0,94299.0,0.29234612]
[1732114009427,3.92023191,94300.0,94299.0,0.29234612]
[1732114009634,3.83539591,94300.0,94299.0,0.29234612]
[1732114009834,3.83539591,94300.0,94299.0,0.29325758]
[1732114010528,3.72935091,94300.0,94299.0,0.29325758]
[1732114010731,3.47935091,94300.0,94299.0,0.31625758]
[1732114010936,3.47935091,94300.0,94299.0,0.184231]
[1732114011729,3.47935091,94300.0,94299.0,0.185231]
[1732114012154,3.47935091,94300.0,94299.0,0.174231]
[1732114014231,3.39451491,94300.0,94299.0,0.184231]
[1732114014449,3.37330591,94300.0,94299.0,0.184231]
[1732114014865,3.35209691,94300.0,94299.0,0.184231]
[1732114015073,3.26726091,94300.0,94299.0,0.29134612]
[1732114015516,3.18242491,94300.0,94299.0,0.29134612]
[1732114015741,3.16121591,94300.0,94299.0,0.29134612]
[1732114016149,3.16121591,94300.0,94299.0,0.29325758]
[1732114016544,3.05517091,94300.0,94299.0,1.88317758]
[1732114016777,2.91322795,94300.0,94299.0,1.90426612]
[1732114016977,2.75114273,94300.0,94299.0,1.90426612]
[1732114017418,1.47931661,94300.0,94299.0,1.90617758]
[1732114017651,1.32110761,94300.0,94299.0,1.90617758]
[1732114018098,1.32110761,94300.0,94299.0,1.90426612]
[1732114018307,0.91328674,94300.0,94299.0,1.90617758]
[1732114018524,0.80724174,94300.0,94299.0,1.90617758]
[1732114018744,0.79933904,94300.0,94299.0,1.90617758]
[1732114019201,0.01,94343.0,94307.0,0.01191146]
[1732114019413,0.126,94323.0,94307.0,0.084225]
[1732114019841,4e-07,94308.0,94307.0,0.29134012]
[1732114020058,4e-07,94308.0,94307.0,0.29325158]
[1732114020272,4e-07,94308.0,94307.0,0.29134012]
[1732114020665,4e-07,94308.0,94307.0,0.29325158]
[1732114020935,0.0769,94341.0,94340.0,0.074199]
[1732114021367,0.0557,94341.0,94340.0,0.074199]
[1732114021601,8.854e-05,94362.0,94346.0,0.074194]
[1732114021817,0.5399,94367.0,94346.0,0.074194]
[1732114021818,0.5399,94367.0,94346.0,0.29130912]
[1732114022025,0.0203455,94368.0,94346.0,0.29130912]
[1732114022179,0.0203455,94368.0,94346.0,0.31430912]
[1732114022382,7e-07,94347.0,94346.0,0.31430912]
[1732114022743,2e-07,94368.0,94367.0,0.08608946]
[1732114022914,2e-07,94368.0,94367.0,0.29129312]
[1732114023676,2e-07,94368.0,94367.0,0.174178]
[1732114023903,0.50498874,94384.0,94376.0,0.074171]
[1732114024114,0.50498874,94384.0,94347.0,0.01]
[1732114024115,0.004236,94381.0,94347.0,0.01]
[1732114024323,0.211911,94379.0,94339.0,0.01]
[1732114024535,0.211911,94379.0,94323.0,0.2814601]
[1732114024536,0.0459,94377.0,94324.0,0.10711512]
[1732114024746,0.0459,94377.0,94333.0,0.01]
[1732114024747,0.0459,94373.0,94333.0,0.01]
[1732114024963,0.023,94374.0,94333.0,0.01]
[1732114024964,0.0459,94370.0,94333.0,0.01]
[1732114025178,0.0459,94370.0,94369.0,0.074176]
[1732114025179,0.15301512,94370.0,94369.0,0.074176]
[1732114025432,0.0459,94370.0,94369.0,0.074176]
[1732114027236,5e-05,94385.0,94384.0,0.074165]
[1732114027684,5e-05,94385.0,94384.0,0.174165]
[1732114028338,5e-05,94385.0,94384.0,0.29128012]
[1732114028571,0.0491,94399.0,94391.0,0.074159]
[1732114029440,0.1267,94414.0,94391.0,0.18127412]
[1732114029669,0.1267,94414.0,94391.0,0.29127412]
[1732114029880,0.01315622,94403.0,94402.0,0.08415]
[1732114030121,0.01315622,94403.0,94402.0,0.29126512]
[1732114031271,2.2e-07,94403.0,94402.0,0.30326512]
[1732114031516,2.2e-07,94403.0,94402.0,0.30126512]
[1732114031713,2.2e-07,94403.0,94402.0,0.08415]
[1732114031933,2.2e-07,94403.0,94402.0,0.19126512]
[1732114032144,2.2e-07,94403.0,94402.0,0.30126512]
[1732114032354,2.2e-07,94403.0,94402.0,0.17415]
[1732114032796,0.04570022,94403.0,94402.0,0.07415]
[1732114034393,0.04570022,94403.0,94396.0,0.1]
[1732114034662,0.2814601,94397.0,94361.0,0.01]
[1732114034858,0.61210386,94396.0,94395.0,0.074156]
[1732114035075,0.61210386,94396.0,94364.0,0.084778]
[1732114035313,0.61210386,94396.0,94335.0,0.001]
[1732114035314,0.1272,94384.0,94348.0,0.084792]
[1732114035521,0.1272,94384.0,94323.0,0.2814601]
[1732114035522,0.11597,94367.0,94356.0,0.074186]
[1732114035735,0.023,94355.0,94350.0,0.074191]
[1732114035962,0.1272,94365.0,94326.0,0.01]
[1732114036174,0.10711512,94354.0,94313.0,0.01]
[1732114036386,0.023,94349.0,94329.0,0.084808]
[1732114036600,0.023,94337.0,94292.0,0.01]
[1732114036822,0.106008,94333.0,94321.0,0.074213]
[1732114037065,0.023,94335.0,94299.0,0.084836]
[1732114037066,0.033,94331.0,94299.0,0.084836]
[1732114037493,0.033,94331.0,94284.0,0.01]
[1732114037494,0.023,94329.0,94321.0,0.074213]
[1732114037495,0.023,94329.0,94284.0,0.01]
[1732114037496,0.023,94329.0,94298.0,0.0865468]
[1732114037737,0.001,94335.0,94298.0,0.0865468]
[1732114037738,0.5399,94339.0,94336.0,0.074202]
[1732114037976,0.69231512,94337.0,94336.0,0.074202]
[1732114038209,0.69231512,94337.0,94312.0,0.084824]
[1732114038420,0.67001512,94336.0,94332.0,0.074205]
[1732114038638,0.67001512,94336.0,94297.0,0.01]
[1732114038639,0.5399,94335.0,94297.0,0.01]
[1732114038873,0.06211512,94334.0,94297.0,0.01]
[1732114039090,0.06211512,94334.0,94329.0,0.148415]
[1732114039318,0.5399,94333.0,94332.0,0.074205]
[1732114039556,0.0453,94337.0,94329.0,0.074207]
[1732114039767,0.15241512,94337.0,94336.0,0.074202]
[1732114039969,0.0453,94337.0,94336.0,0.074202]
[1732114040402,0.0779,94347.0,94334.0,0.084804]
[1732114040403,0.0779,94347.0,94337.0,0.074202]
[1732114040618,0.0779,94347.0,94346.0,0.074194]
[1732114041531,0.18501512,94347.0,94343.0,0.084796]
[1732114041740,0.10711512,94346.0,94345.0,0.074195]
[1732114041956,0.10711512,94346.0,94343.0,0.084796]
[1732114042174,0.023,94343.0,94297.0,0.01]
[1732114042409,0.01,94339.0,94296.0,0.0017098]